bitfinex/quotes_BTCUSD_20241229
["timestamp","ask_amount","ask_price","bid_price","bid_amount"]
[1735508100108,0.01039863,94068.0,94040.0,0.0826]
[1735508100254,0.01039863,94068.0,94042.0,0.001]
[1735508100665,0.01039863,94068.0,94040.0,0.18658632]
[1735508100909,0.01039863,94068.0,94043.0,0.001]
[1735508100910,0.01739863,94068.0,94043.0,0.001]
[1735508101113,0.01640085,94067.0,94040.0,0.18658632]
[1735508102013,0.01640085,94067.0,94041.0,0.10398632]
[1735508102215,0.01739863,94068.0,94041.0,0.10398632]
[1735508102216,0.007,94068.0,94041.0,0.10398632]
[1735508102606,0.018,94068.0,94042.0,0.001]
[1735508102821,0.004,94068.0,94043.0,0.10398632]
[1735508103181,0.04262351,94070.0,94043.0,0.10398632]
[1735508103182,0.006,94067.0,94043.0,0.10398632]
[1735508103387,8.53e-05,94079.0,94044.0,0.0188094]
[1735508103604,0.004,94067.0,94045.0,0.10398632]
[1735508103801,0.004,94067.0,94046.0,0.1266]
[1735508104005,0.004,94068.0,94048.0,0.0779]
[1735508104227,8.53e-05,94079.0,94049.0,0.10398632]
[1735508104421,0.003,94067.0,94050.0,0.02493957]
[1735508104624,0.003,94067.0,94051.0,0.10398632]
[1735508106211,8.53e-05,94079.0,94051.0,0.10398632]
[1735508106729,0.001,94067.0,94051.0,0.10398632]
[1735508107368,0.002,94068.0,94051.0,0.10398632]
[1735508107591,0.0639,94067.0,94048.0,0.01401]
[1735508107773,0.07029,94067.0,94051.0,0.001]
[1735508108049,0.0703753,94067.0,94051.0,0.001]
[1735508108253,0.0703753,94067.0,94046.0,0.03073]
[1735508108459,0.0703753,94067.0,94027.0,0.2]
[1735508108460,0.10398632,94066.0,94027.0,0.2]
[1735508108667,0.1044936,94066.0,94028.0,0.10398632]
[1735508108888,0.01748689,94065.0,94028.0,0.10398632]
[1735508109100,0.10398632,94064.0,94028.0,0.10398632]
[1735508110135,0.10398632,94064.0,94028.0,0.10498632]
[1735508110345,0.11298632,94064.0,94028.0,0.10598632]
[1735508110560,0.11298632,94064.0,94028.0,0.10498632]
[1735508110772,0.04841974,94063.0,94028.0,0.10498632]
[1735508110984,0.10398632,94062.0,94028.0,0.10498632]
[1735508111204,0.10398632,94062.0,94029.0,0.1266]
[1735508111448,0.10398632,94062.0,94030.0,0.10398632]
[1735508112760,0.0779,94059.0,94021.0,0.0779]
[1735508112996,0.0779,94057.0,94021.0,0.0779]
[1735508113245,0.10398632,94056.0,94021.0,0.0779]
[1735508113727,0.10398632,94056.0,94021.0,0.034305]
[1735508113981,0.02518993,94055.0,94021.0,0.034305]
[1735508114203,0.10398632,94054.0,94021.0,0.034305]
[1735508116408,0.10698632,94054.0,94021.0,0.034305]
[1735508117183,0.10998632,94054.0,94021.0,0.034305]
[1735508118981,0.10998632,94054.0,94021.0,0.0344756]
[1735508119190,0.0792,94052.0,94021.0,0.0001706]
[1735508119390,0.10398632,94051.0,94021.0,0.0001706]
[1735508120563,0.10598632,94051.0,94021.0,0.0001706]
[1735508122725,0.10798632,94051.0,94021.0,0.0001706]
[1735508123431,0.0792,94050.0,94021.0,0.0001706]
[1735508123646,0.13499771,94049.0,94021.0,0.0001706]
[1735508125699,0.046,94047.0,94015.0,0.03951016]
[1735508125900,0.046,94047.0,93995.0,0.1]
[1735508125901,0.0792,94045.0,93995.0,0.1]
[1735508126206,0.0792,94041.0,93991.0,0.09534489]
[1735508126443,0.0792,94039.0,93991.0,0.09534489]
[1735508126642,0.14998632,94038.0,93991.0,0.09534489]
[1735508126778,0.0792,94037.0,93991.0,0.09534489]
[1735508126975,0.0792,94035.0,93991.0,0.09534489]
[1735508127244,0.12690495,94034.0,93995.0,0.1]
[1735508127445,0.0792,94033.0,93995.0,0.1]
[1735508127653,0.0792,94031.0,93995.0,0.1]
[1735508127857,0.10398632,94030.0,93995.0,0.1]
[1735508128707,0.07928087,94031.0,94003.0,0.14968632]
[1735508128913,8.087e-05,94031.0,94005.0,0.1]
[1735508129116,8.087e-05,94031.0,94006.0,0.10398632]
[1735508130100,8.087e-05,94031.0,94007.0,0.00106358]
[1735508130101,0.00508087,94031.0,94007.0,0.00106358]
[1735508130300,0.00808087,94031.0,94008.0,0.10398632]
[1735508130514,0.00308087,94031.0,94021.0,0.0001708]
[1735508130827,0.00408087,94031.0,94021.0,0.0001708]
[1735508131020,0.00308087,94031.0,94021.0,0.0001708]
[1735508131397,0.00308087,94031.0,94030.0,4.005e-05]
[1735508131815,0.01757701,94031.0,94030.0,4.005e-05]
[1735508132657,0.01857701,94031.0,94030.0,4.005e-05]
[1735508132908,0.02157701,94031.0,94030.0,4.005e-05]
[1735508133049,0.01757701,94031.0,94030.0,4.005e-05]
[1735508133883,0.01657701,94031.0,94030.0,4.005e-05]
[1735508134281,0.00408087,94031.0,94030.0,4.005e-05]
[1735508143053,0.00416627,94031.0,94030.0,4.005e-05]
[1735508147020,0.11631452,94048.0,94030.0,4.005e-05]
[1735508147132,4.18698632,94047.0,94030.0,0.00016958]
[1735508147371,0.01668015,94044.0,94030.0,0.00016958]
[1735508147644,4.77578764,94043.0,94030.0,0.00016958]
[1735508147767,3.494,94042.0,94030.0,0.00016958]
[1735508147961,0.10398632,94041.0,94030.0,0.00016958]
[1735508149989,0.0787,94040.0,94030.0,0.00016958]
[1735508150219,0.10398632,94039.0,94030.0,0.00016958]
[1735508150400,0.04035505,94038.0,94030.0,0.00016958]
[1735508150607,0.10398632,94037.0,94030.0,0.00016958]
[1735508151272,0.10398632,94037.0,94030.0,0.00116958]
[1735508151484,0.10398632,94037.0,94030.0,0.00016958]
[1735508151663,0.1206663,94037.0,94030.0,0.00016958]
[1735508151878,0.01667998,94037.0,94032.0,0.0458]
[1735508152087,0.004,94040.0,94032.0,0.0458]
[1735508152509,0.009,94041.0,94032.0,0.0458]
[1735508152716,0.003,94037.0,94032.0,0.0458]
[1735508153529,0.01,94037.0,94032.0,0.0458]
[1735508153754,0.003,94037.0,94032.0,0.0458]
[1735508153959,0.001,94037.0,94032.0,0.0458]
[1735508156133,0.002,94037.0,94032.0,0.0458]
[1735508158515,0.002,94037.0,94033.0,0.0759]
[1735508159137,0.001,94037.0,94033.0,0.0759]
[1735508160089,0.001,94037.0,94035.0,0.0823]
[1735508160514,0.09591389,94041.0,94035.0,0.0823]
[1735508161116,0.09591389,94046.0,94035.0,0.0823]
[1735508161481,0.001,94037.0,94035.0,0.0833]
[1735508161703,0.001,94037.0,94035.0,0.0823]
[1735508162123,0.001,94037.0,94035.0,0.0833]
[1735508162553,8.54e-05,94054.0,94035.0,0.0823]
[1735508163666,0.001,94037.0,94035.0,0.0833]
[1735508164469,8.54e-05,94054.0,94035.0,0.0823]
[1735508165091,8.54e-05,94054.0,94035.0,0.0833]
[1735508165270,8.54e-05,94054.0,94035.0,0.0823]
[1735508165473,0.001,94037.0,94035.0,0.0833]
[1735508166797,8.54e-05,94054.0,94035.0,0.0823]
[1735508166942,8.54e-05,94054.0,94035.0,0.0833]
[1735508167362,0.09579636,94061.0,94035.0,0.0823]
[1735508167565,0.09579636,94061.0,94036.0,0.04324265]
[1735508167966,0.001,94037.0,94036.0,0.04324265]
[1735508168172,0.001,94037.0,94035.0,0.0833]
[1735508168952,0.01667654,94068.0,94035.0,0.0823]
[1735508169158,0.10398632,94066.0,94035.0,0.0823]
[1735508169538,0.10398632,94066.0,94035.0,0.0824706]
[1735508169977,8.53e-05,94048.0,94035.0,0.0824706]
[1735508170388,8.53e-05,94048.0,94036.0,0.04325971]
[1735508170773,8.53e-05,94048.0,94035.0,0.0824706]
[1735508171962,8.53e-05,94048.0,94035.0,0.0834706]
[1735508176982,8.53e-05,94048.0,94035.0,0.0824706]
[1735508177214,8.53e-05,94048.0,94035.0,0.0834706]
[1735508194176,8.53e-05,94048.0,94035.0,0.0011706]
[1735508194375,0.00828853,94047.0,94035.0,0.0011706]
[1735508194577,8.53e-05,94048.0,94035.0,0.0011706]
[1735508204151,8.53e-05,94048.0,94035.0,0.0001706]
[1735508204549,0.0010853,94048.0,94035.0,0.0001706]
[1735508208885,0.10398632,94047.0,94035.0,0.0001706]
[1735508209093,0.0778,94046.0,94035.0,0.0001706]
[1735508209296,4.77578764,94045.0,94035.0,0.0001706]
[1735508209522,4.567815,94044.0,94035.0,0.0001706]
[1735508209736,0.10398632,94043.0,94035.0,0.0001706]
[1735508210498,0.14363653,94039.0,94035.0,0.0001706]
[1735508210708,0.10398632,94038.0,94035.0,0.0001706]
[1735508210939,0.04391382,94037.0,94035.0,0.0001706]
[1735508211076,0.10398632,94036.0,94035.0,0.0001706]
[1735508213364,0.10498632,94036.0,94035.0,0.0001706]
[1735508216735,0.10398632,94036.0,94035.0,0.0001706]
[1735508216976,0.10798632,94036.0,94035.0,0.0001706]
[1735508217445,0.10698632,94036.0,94035.0,0.0001706]
[1735508218815,0.10798632,94036.0,94035.0,0.0001706]
[1735508219537,0.13314861,94036.0,94035.0,0.0001706]
[1735508220027,0.13214861,94036.0,94035.0,0.0001706]
[1735508220261,0.13014861,94036.0,94035.0,0.0001706]
[1735508220497,0.13314861,94036.0,94035.0,0.0001706]
[1735508220741,0.13214861,94036.0,94035.0,0.0001706]
[1735508220998,0.12914861,94036.0,94035.0,0.0001706]
[1735508221243,0.13414861,94036.0,94035.0,0.0001706]
[1735508222224,0.10898632,94036.0,94035.0,0.0001706]
[1735508222467,0.11098632,94036.0,94035.0,0.0001706]
[1735508233829,3.59518632,94036.0,94035.0,0.0001706]
[1735508234060,4.75500132,94036.0,94035.0,0.0001706]
[1735508234843,4.75000132,94036.0,94035.0,0.0001706]
[1735508235157,4.85398764,94036.0,94035.0,0.0001706]
[1735508235366,4.85798764,94036.0,94035.0,0.0001706]
[1735508235547,5.04950301,94036.0,94035.0,0.0001706]
[1735508235746,5.07120301,94036.0,94035.0,0.0001706]
[1735508236202,0.50338801,94036.0,94035.0,0.0001706]
[1735508236414,5.07420301,94036.0,94035.0,0.0001706]
[1735508236615,4.88268764,94036.0,94035.0,0.0001706]
[1735508237024,4.79272448,94036.0,94035.0,0.0001706]
[1735508237434,4.81840851,94036.0,94035.0,0.0001706]
[1735508237629,4.80940851,94036.0,94035.0,0.0001706]
[1735508237853,4.80640851,94036.0,94035.0,0.0001706]
[1735508237995,4.82240851,94036.0,94035.0,0.0001706]
[1735508238200,4.92639483,94036.0,94035.0,0.0001706]
[1735508238445,4.91739483,94036.0,94035.0,0.0001706]
[1735508238643,4.91039483,94036.0,94035.0,0.0001706]
[1735508238849,4.89769483,94036.0,94035.0,0.0001706]
[1735508239049,4.90469483,94036.0,94035.0,0.0001706]
[1735508239245,5.19172297,94036.0,94035.0,0.0001706]
[1735508239446,5.18472297,94036.0,94035.0,0.0001706]
[1735508239993,5.19272297,94036.0,94035.0,0.0001706]
[1735508240170,4.90569483,94036.0,94035.0,0.0001706]
[1735508240309,4.89669483,94036.0,94035.0,0.0001706]
[1735508240511,4.87667167,94036.0,94035.0,0.0001706]
[1735508240831,4.88567167,94036.0,94035.0,0.0001706]
[1735508241053,4.86867167,94036.0,94035.0,0.0001706]
[1735508241258,4.87767167,94036.0,94035.0,0.0001706]
[1735508241459,4.88567167,94036.0,94035.0,0.0001706]
[1735508242507,4.87767167,94036.0,94035.0,0.0001706]
[1735508242920,4.88567167,94036.0,94035.0,0.0001706]
[1735508244212,4.86898764,94036.0,94035.0,0.0001706]
[1735508246354,4.64462064,94036.0,94035.0,0.0001706]
[1735508246737,3.88098632,94036.0,94035.0,0.0001706]
[1735508246957,0.12098632,94036.0,94035.0,0.0001706]
[1735508247570,0.1376704,94036.0,94035.0,0.0001706]
[1735508248089,4.5573184,94036.0,94035.0,0.0001706]
[1735508254148,4.54063432,94036.0,94035.0,0.0001706]
[1735508254509,4.64462064,94036.0,94035.0,0.0001706]
[1735508254708,4.66472064,94036.0,94035.0,0.0001706]
[1735508255349,4.68642064,94036.0,94035.0,0.0001706]
[1735508255553,4.69196773,94036.0,94035.0,0.0001706]
[1735508255752,4.68396773,94036.0,94035.0,0.0001706]
[1735508256091,4.69296773,94036.0,94035.0,0.0001706]
[1735508256298,4.76356773,94036.0,94030.0,0.00034018]
[1735508256502,0.21638632,94031.0,94030.0,0.00034018]
[1735508256698,4.63603432,94031.0,94030.0,0.00034018]
[1735508257008,4.63712474,94031.0,94030.0,0.00034018]
[1735508257367,4.67715016,94031.0,94030.0,0.00034018]
[1735508257587,4.76340657,94031.0,94030.0,0.00034018]
[1735508258281,4.77240657,94031.0,94030.0,0.00034018]
[1735508258487,0.35275857,94031.0,94030.0,0.00034018]
[1735508258918,4.77240657,94031.0,94030.0,0.00034018]
[1735508259437,4.78140657,94031.0,94030.0,0.00034018]
[1735508259577,5.10392473,94031.0,94030.0,0.00034018]
[1735508260918,4.78140657,94031.0,94030.0,0.00034018]
[1735508261171,4.78567157,94031.0,94030.0,0.00034018]
[1735508262071,4.59202357,94031.0,94030.0,0.00034018]
[1735508262301,4.58302357,94031.0,94030.0,0.00034018]
[1735508262773,4.59202357,94031.0,94030.0,0.00034018]
[1735508263027,4.54132357,94031.0,94021.0,0.0001708]
[1735508263235,0.21638632,94022.0,94021.0,0.00032305]
[1735508263582,4.63603432,94022.0,94021.0,0.00032305]
[1735508263995,4.65605974,94022.0,94021.0,0.00032305]
[1735508264200,4.69735974,94022.0,94021.0,0.00032305]
[1735508264561,4.70635974,94022.0,94021.0,0.00032305]
[1735508264771,4.80134606,94022.0,94021.0,0.00032305]
[1735508266144,4.81034606,94022.0,94021.0,0.00032305]
[1735508266349,4.81934606,94022.0,94021.0,0.00032305]
[1735508266621,4.80134606,94022.0,94021.0,0.00032305]
[1735508266891,4.81034606,94022.0,94021.0,0.00032305]
[1735508267097,4.81934606,94022.0,94021.0,0.00032305]
[1735508267665,4.8360346,94022.0,94021.0,0.00032305]
[1735508268986,5.12265971,94022.0,94021.0,0.00032305]
[1735508270971,4.8360346,94022.0,94021.0,0.00032305]
[1735508272820,4.6713866,94022.0,94021.0,0.00032305]
[1735508273020,3.4473866,94022.0,94021.0,0.00032305]
[1735508273642,3.4060866,94022.0,94021.0,0.00032305]
[1735508273863,3.11799806,94022.0,94009.0,0.0703423]
[1735508274082,0.10398632,94010.0,94009.0,0.03769342]
[1735508274285,4.52363432,94010.0,94009.0,0.03769342]
[1735508274708,4.71471199,94010.0,94009.0,0.03769342]
[1735508275997,4.53706399,94010.0,94009.0,0.03769342]
[1735508276210,4.64105031,94010.0,94009.0,0.03769342]
[1735508276719,4.44997264,94010.0,94009.0,0.03769342]
[1735508277134,4.47566079,94010.0,94009.0,0.03769342]
[1735508280153,4.47566079,94010.0,94009.0,0.03284701]
[1735508280598,4.31630363,94010.0,94009.0,0.03284701]
[1735508281217,4.31630363,94010.0,94003.0,0.04568087]
[1735508281420,0.09749608,94005.0,94003.0,8.087e-05]
[1735508281558,4.266951,94004.0,94003.0,8.087e-05]
[1735508281768,4.36461681,94004.0,94003.0,8.087e-05]
[1735508282945,4.55600129,94004.0,94003.0,8.087e-05]
[1735508283361,4.56500129,94004.0,94003.0,8.087e-05]
[1735508283571,4.62087024,94004.0,94003.0,8.087e-05]
[1735508283806,4.42048576,94004.0,94003.0,8.087e-05]
[1735508284218,4.42948576,94004.0,94003.0,8.087e-05]
[1735508284869,4.42948576,94004.0,93980.0,0.0769706]
[1735508284870,4.53843406,94004.0,93980.0,0.0769706]
[1735508285096,0.09831659,93981.0,93980.0,0.0769706]
[1735508285321,4.36526759,93981.0,93980.0,0.07712307]
[1735508286638,0.09831659,93981.0,93980.0,0.07712307]
[1735508287062,3.73031659,93981.0,93980.0,0.07712307]
[1735508287473,3.75600833,93981.0,93980.0,0.07712307]
[1735508287693,3.85999465,93981.0,93980.0,0.07712307]
[1735508287894,3.85099465,93981.0,93980.0,0.12652307]
[1735508288100,3.85999465,93981.0,93980.0,0.12652307]
[1735508288314,3.85999465,93981.0,93980.0,0.12582307]
[1735508289057,3.86599465,93981.0,93980.0,0.12582307]
[1735508289493,3.21500833,93981.0,93980.0,0.12582307]
[1735508289720,0.02569174,93981.0,93980.0,0.12582307]
[1735508289919,0.17621457,93981.0,93980.0,0.12582307]
[1735508290634,0.16921457,93981.0,93980.0,0.12582307]
[1735508290884,0.16621457,93981.0,93980.0,0.12582307]
[1735508291114,0.05845413,93981.0,93980.0,0.12582307]
[1735508291351,0.03069174,93981.0,93980.0,0.12582307]
[1735508291616,0.12965927,93981.0,93980.0,0.12582307]
[1735508292344,0.12365927,93981.0,93980.0,0.12582307]
[1735508292595,2.69065927,93981.0,93980.0,0.12582307]
[1735508292796,1.63965927,93981.0,93980.0,0.12582307]
[1735508293038,1.41164559,93981.0,93980.0,0.12582307]
[1735508293289,0.79764559,93981.0,93980.0,0.12582307]
[1735508293529,0.80264559,93981.0,93980.0,0.12582307]
[1735508293725,0.79464559,93981.0,93980.0,0.12582307]
[1735508293974,0.78964559,93981.0,93980.0,0.12582307]
[1735508294190,0.80364559,93981.0,93980.0,0.12582307]
[1735508294427,0.78695385,93981.0,93980.0,0.12582307]
[1735508294597,0.79595385,93981.0,93980.0,0.12582307]
[1735508294938,0.54995385,93981.0,93980.0,0.12582307]
[1735508295137,0.47295385,93981.0,93980.0,0.12582307]
[1735508295344,0.42995385,93981.0,93980.0,0.12582307]
[1735508295766,0.32596753,93981.0,93980.0,0.12582307]
[1735508296505,0.023,93981.0,93980.0,0.12582307]
[1735508296913,0.16652283,93981.0,93980.0,0.12582307]
[1735508297882,0.023,93981.0,93980.0,0.12582307]
[1735508298049,0.005,93981.0,93980.0,0.12582307]
[1735508298433,0.008,93981.0,93980.0,0.12582307]
[1735508298632,0.003,93981.0,93980.0,0.12582307]
[1735508299262,0.01669035,93986.0,93981.0,0.0769]
[1735508300586,0.01669035,93986.0,93981.0,0.0739]
[1735508300795,0.14352283,93995.0,93980.0,0.00015247]
[1735508301202,0.005,93986.0,93980.0,0.00015247]
[1735508301407,0.14352283,93995.0,93987.0,0.1]
[1735508301581,0.14352283,93995.0,93992.0,0.1]
[1735508301841,0.14352283,93995.0,93992.0,0.095]
[1735508302049,0.14352283,94004.0,93992.0,0.095]
[1735508302433,0.14352283,94004.0,93993.0,0.0467]
[1735508302632,0.20095204,94004.0,93993.0,0.0467]
[1735508303057,0.05742921,94004.0,93993.0,0.0457]
[1735508303249,0.01668507,94007.0,93993.0,0.0457]
[1735508303615,0.01668507,94007.0,93994.0,0.0769]
[1735508304046,0.001,94004.0,93994.0,0.0769]
[1735508305681,0.0001708,94010.0,93994.0,0.0769]
[1735508305891,0.004,94004.0,93994.0,0.0769]
[1735508306369,0.004,94004.0,93996.0,0.0769]
[1735508306781,0.006,94004.0,93997.0,0.0467]
[1735508306990,0.006,94004.0,93998.0,0.0769]
[1735508307192,0.002,94004.0,93998.0,0.0769]
[1735508307366,0.0001708,94010.0,93998.0,0.0769]
[1735508307565,0.0061708,94010.0,93998.0,0.0769]
[1735508307765,0.002,94004.0,93998.0,0.0769]
[1735508308737,0.006,94004.0,93998.0,0.0769]
[1735508309645,0.004,94004.0,93998.0,0.0769]
[1735508310724,0.006,94004.0,93998.0,0.0769]
[1735508314935,0.0061708,94004.0,93998.0,0.0769]
[1735508326096,0.0061708,94004.0,93999.0,0.0454]
[1735508326414,0.0061708,94004.0,94000.0,0.0773]
[1735508327003,0.0021708,94004.0,94000.0,0.0773]
[1735508327807,0.0001708,94004.0,94000.0,0.0773]
[1735508328206,0.0001708,94004.0,94000.0,0.0793]
[1735508328834,0.0011708,94004.0,94000.0,0.0793]
[1735508329274,0.0001708,94004.0,94000.0,0.0793]
[1735508329505,0.0011708,94004.0,94000.0,0.0773]
[1735508329916,0.002,94004.0,94000.0,0.0773]
[1735508330425,0.01668507,94017.0,94000.0,0.0773]
[1735508330629,4.36433391,94016.0,94000.0,0.0773]
[1735508330829,4.37093732,94015.0,94000.0,0.0773]
[1735508331041,4.36439049,94014.0,94000.0,0.0773]
[1735508331243,4.266951,94013.0,94000.0,0.0773]
[1735508331451,0.09749608,94012.0,94000.0,0.0773]
[1735508331631,0.09749608,94012.0,93995.0,0.0773]
[1735508331632,4.266951,94011.0,93995.0,0.0773]
[1735508331836,0.20168042,94010.0,93995.0,0.0773]
[1735508331995,4.266951,94009.0,93995.0,0.0773]
[1735508332196,0.09775069,94008.0,93995.0,0.0773]
[1735508332397,4.266951,94007.0,93993.0,8.54e-05]
[1735508332595,0.11455093,94006.0,93993.0,8.54e-05]
[1735508332800,4.31481995,94005.0,93993.0,8.54e-05]
[1735508333116,4.36487144,94004.0,93993.0,8.54e-05]
[1735508333324,4.266951,94003.0,93993.0,8.54e-05]
[1735508333505,0.09797703,94002.0,94000.0,0.001]
[1735508333710,0.09797703,94002.0,93993.0,8.54e-05]
[1735508333711,4.266951,94001.0,93993.0,8.54e-05]
[1735508333890,0.20201994,94000.0,93993.0,0.0010854]
[1735508334095,4.266951,93999.0,93993.0,0.0010854]
[1735508334306,0.09809021,93998.0,93993.0,8.54e-05]
[1735508334512,4.266951,93997.0,93993.0,8.54e-05]
[1735508334756,0.0981468,93996.0,93993.0,8.54e-05]
[1735508334953,0.10398632,93995.0,93993.0,8.54e-05]
[1735508335282,4.46914073,93995.0,93993.0,8.54e-05]
[1735508335512,0.20218973,93995.0,93993.0,8.54e-05]
[1735508335727,0.09820341,93995.0,93993.0,8.54e-05]
[1735508335917,0.09820341,93995.0,93993.0,0.0010854]
[1735508336485,0.20700555,94021.0,93993.0,0.0010854]
[1735508336706,4.266951,94020.0,93993.0,0.0010854]
[1735508336918,0.002,93995.0,93993.0,0.0010854]
[1735508337111,0.002,93995.0,93993.0,8.54e-05]
[1735508337292,0.008,93995.0,93993.0,8.54e-05]
[1735508337839,0.002,93995.0,93993.0,8.54e-05]
[1735508338341,0.009,94020.0,93993.0,8.54e-05]
[1735508338517,0.01668852,93995.0,93993.0,8.54e-05]
[1735508338730,0.007,93995.0,93993.0,8.54e-05]
[1735508338941,4.266951,93994.0,93993.0,8.54e-05]
[1735508339238,0.01969006,93995.0,93993.0,8.54e-05]
[1735508339393,4.266951,93994.0,93993.0,8.54e-05]
[1735508340122,4.271951,93994.0,93993.0,8.54e-05]
[1735508341579,4.275951,93994.0,93993.0,8.54e-05]
[1735508341853,4.37993732,93994.0,93993.0,8.54e-05]
[1735508342099,4.38493732,93994.0,93993.0,8.54e-05]
[1735508343291,1.764,93994.0,93993.0,8.54e-05]
[1735508343548,1.749,93994.0,93993.0,8.54e-05]
[1735508347503,1.76569017,93994.0,93993.0,8.54e-05]
[1735508354301,1.749,93994.0,93993.0,8.54e-05]
[1735508357670,1.765691,93994.0,93993.0,8.54e-05]
[1735508357862,1.86967732,93994.0,93993.0,8.54e-05]
[1735508364210,1.85298632,93994.0,93993.0,8.54e-05]
[1735508367511,1.86967756,93994.0,93993.0,8.54e-05]
[1735508370360,1.87522619,93994.0,93993.0,8.54e-05]
[1735508371143,1.87022619,93994.0,93993.0,8.54e-05]
[1735508371331,1.86922619,93994.0,93993.0,8.54e-05]
[1735508371793,1.87822619,93994.0,93993.0,0.0010854]
[1735508371996,1.86122619,93994.0,93993.0,8.54e-05]
[1735508372147,1.86122619,93994.0,93993.0,0.0010854]
[1735508372338,1.87922619,93994.0,93993.0,0.0010854]
[1735508373501,1.86253495,93994.0,93993.0,0.0010854]
[1735508375398,0.12753495,93994.0,93993.0,0.0010854]
[1735508375606,0.02354863,93994.0,93993.0,0.0010854]
[1735508376235,4.29049963,93994.0,93993.0,0.0010854]
[1735508376790,4.32722204,93994.0,93993.0,0.0010854]
[1735508383356,4.31822204,93994.0,93993.0,0.0010854]
[1735508383556,4.32722204,93994.0,93993.0,0.0010854]
[1735508383792,4.43547536,93994.0,93993.0,0.0010854]
[1735508383993,4.42647536,93994.0,93993.0,0.0010854]
[1735508384193,4.42647536,93994.0,93988.0,0.06817526]
[1735508384405,4.266951,93993.0,93988.0,0.06817526]
[1735508384861,0.02003048,93992.0,93988.0,0.06817526]
[1735508385061,4.37093732,93991.0,93988.0,0.06817526]
[1735508385333,4.266951,93990.0,93988.0,0.06817526]
[1735508386743,4.266951,93990.0,93988.0,0.06457146]
[1735508387609,4.283951,93990.0,93988.0,0.06457146]
[1735508388099,4.266951,93989.0,93988.0,0.06457146]
[1735508388302,4.29562108,93989.0,93988.0,0.06457146]
[1735508388884,0.02867008,93989.0,93988.0,0.06457146]
[1735508389251,4.29562108,93989.0,93988.0,0.06457146]
[1735508389455,4.31231271,93989.0,93988.0,0.06457146]
[1735508390130,4.32031271,93989.0,93988.0,0.06457146]
[1735508390517,4.32931271,93989.0,93988.0,0.06457146]
[1735508391440,4.37198371,93989.0,93988.0,0.06457146]
[1735508391651,4.34331363,93989.0,93988.0,0.11377146]
[1735508391851,1.94669163,93989.0,93988.0,0.11377146]
[1735508392284,0.03369163,93989.0,93988.0,0.11377146]
[1735508392739,0.95069163,93989.0,93988.0,0.11377146]
[1735508392948,4.29764263,93989.0,93988.0,0.06457146]
[1735508393159,4.40162895,93989.0,93981.0,0.0815]
[1735508393368,4.266951,93988.0,93981.0,0.0815]
[1735508395250,0.28773685,93985.0,93981.0,0.0815]
[1735508395456,4.266951,93984.0,93981.0,0.0815]
[1735508396871,4.266951,93984.0,93965.0,0.0001702]
[1735508396872,0.10398632,93983.0,93967.0,0.0777]
[1735508397075,0.10398632,93983.0,93965.0,0.0001702]
[1735508397076,0.04786895,93982.0,93965.0,0.0001702]
[1735508397254,4.113126,93981.0,93965.0,0.0001702]
[1735508397437,4.113126,93980.0,93965.0,0.0001702]
[1735508397640,4.113126,93979.0,93965.0,0.0001702]
[1735508397842,4.21711232,93978.0,93965.0,0.0001702]
[1735508398090,0.23972481,93966.0,93965.0,0.0001702]
[1735508398291,4.35285081,93966.0,93965.0,0.0001702]
[1735508399095,4.137426,93966.0,93951.0,0.0002]
[1735508399294,4.113126,93965.0,93944.0,0.0777]
[1735508399495,0.01669766,93963.0,93944.0,0.0777]
[1735508399783,4.113126,93962.0,93944.0,0.0777]
[1735508399949,4.113126,93961.0,93944.0,0.0777]
[1735508400282,4.113126,93960.0,93944.0,0.0777]
[1735508400486,0.19165746,93949.0,93944.0,0.0777]
[1735508400703,4.15624893,93948.0,93944.0,0.0777]
[1735508401336,4.1679477,93948.0,93944.0,0.0777]
[1735508401552,4.1679477,93948.0,93938.0,0.1231]
[1735508401756,4.113126,93947.0,93938.0,0.07780849]
[1735508401967,4.113126,93946.0,93938.0,0.07780849]
[1735508402168,0.10398632,93945.0,93938.0,0.07780849]
[1735508402369,4.113126,93944.0,93938.0,0.07780849]
[1735508402573,0.14374995,93941.0,93938.0,0.07780849]
[1735508402777,4.113126,93940.0,93938.0,0.07780849]
[1735508402980,4.113126,93939.0,93938.0,0.07780849]
[1735508404449,2.076,93939.0,93938.0,0.07780849]
[1735508404948,2.082,93939.0,93938.0,0.07780849]
[1735508405153,2.19498632,93939.0,93938.0,0.07780849]
[1735508405350,2.18598632,93939.0,93938.0,0.07780849]
[1735508405758,0.015,93939.0,93938.0,0.12650849]
[1735508406335,0.009,93939.0,93938.0,0.12650849]
[1735508406832,0.014,93939.0,93938.0,0.12650849]
[1735508407181,0.009,93939.0,93938.0,0.12650849]
[1735508407387,0.14367422,93945.0,93938.0,0.12650849]
[1735508407589,0.14367422,93945.0,93939.0,0.123]
[1735508407798,0.14367422,93947.0,93939.0,0.0447]
[1735508408563,0.14367422,93947.0,93939.0,0.0437]
[1735508409495,0.20285143,93947.0,93939.0,0.0437]
[1735508409937,0.05917721,93947.0,93939.0,0.0437]
[1735508410131,0.002,93947.0,93939.0,0.0437]
[1735508410538,0.005,93947.0,93940.0,0.0773]
[1735508411361,0.0001708,93948.0,93940.0,0.0773]
[1735508411862,0.001,93947.0,93940.0,0.0773]
[1735508412260,0.06127721,93947.0,93940.0,0.0773]
[1735508412665,0.14367422,93945.0,93940.0,0.0773]
[1735508413351,0.14367422,93945.0,93941.0,0.126]
[1735508413491,0.14367422,93945.0,93939.0,0.0773]
[1735508413687,0.14367422,93945.0,93941.0,0.0773]
[1735508413895,0.14584502,93948.0,93943.0,0.0773]
[1735508414135,0.20355245,93948.0,93945.0,0.0773]
[1735508414340,0.20155245,93948.0,93945.0,0.0763]
[1735508414543,0.14384502,93948.0,93945.0,0.0763]
[1735508414744,4.113126,93947.0,93945.0,0.0763]
[1735508416948,4.35369783,93947.0,93938.0,0.00059389]
[1735508417150,4.11376217,93946.0,93938.0,0.00059389]
[1735508417322,4.113126,93945.0,93938.0,0.00059389]
[1735508417501,0.10398632,93944.0,93938.0,0.00059389]
[1735508417717,4.113126,93943.0,93938.0,0.00059389]
[1735508417915,0.23957183,93941.0,93938.0,0.00059389]
[1735508418108,4.113126,93940.0,93938.0,0.00059389]
[1735508419121,0.009,93941.0,93938.0,0.00059389]
[1735508419334,2.78786895,93940.0,93938.0,0.00059389]
[1735508419549,2.815,93939.0,93938.0,0.00059389]
[1735508419770,2.795,93939.0,93938.0,0.00059389]
[1735508420298,1.818,93939.0,93938.0,0.00059389]
[1735508421420,1.822,93939.0,93938.0,0.00059389]
[1735508421659,1.92598632,93939.0,93938.0,0.00059389]
[1735508421851,1.93398632,93939.0,93938.0,0.00059389]
[1735508422197,1.95068482,93939.0,93938.0,0.00059389]